{"text_format":"1","workbook":"xlsx","n_sheets":1,"sheets":["Planejador de orçamento"],"not_rendered":{"charts":1,"images":0,"macros":0,"external_links":0,"defined_names":1,"comments":0,"pivot_tables":0},"unopened":[],"bounds":{"document_bytes":16777216,"sheet_cells":100000,"rows_first":2000,"rows_last":500,"rows_between":2000,"halvings":0,"cell_chars":16384,"cell_head_chars":4096},"cells_cut":0,"cells_raw":0,"read":"whole","date_system":"1900"}

{"sheet":"Planejador de orçamento","index":0,"n_rows":21,"n_cols":6,"rows_kept":21,"cut":false,"hidden":false,"merged":[]}
[]
[]
[null,"Orçamento por categoria"]
[null,"Categorias","Orçamento planejado","Orçamento em detalhes","Disponível / (acima)"]
[null,"Transporte",750,{"$f":"SUMIF(Tabela2[Categoria],Tabela1[[#This Row],[Categorias]],Tabela2[Valor])","v":720},{"$f":"IFERROR(Tabela1[[#This Row],[Orçamento planejado]]-Tabela1[[#This Row],[Orçamento em detalhes]],\"\")","v":30}]
[null,"Hospedagem",250,{"$f":"SUMIF(Tabela2[Categoria],Tabela1[[#This Row],[Categorias]],Tabela2[Valor])","v":300},{"$f":"IFERROR(Tabela1[[#This Row],[Orçamento planejado]]-Tabela1[[#This Row],[Orçamento em detalhes]],\"\")","v":-50}]
[null,"Alimentação",100,{"$f":"SUMIF(Tabela2[Categoria],Tabela1[[#This Row],[Categorias]],Tabela2[Valor])","v":80},{"$f":"IFERROR(Tabela1[[#This Row],[Orçamento planejado]]-Tabela1[[#This Row],[Orçamento em detalhes]],\"\")","v":20}]
[null,"Atividades",500,{"$f":"SUMIF(Tabela2[Categoria],Tabela1[[#This Row],[Categorias]],Tabela2[Valor])","v":500},{"$f":"IFERROR(Tabela1[[#This Row],[Orçamento planejado]]-Tabela1[[#This Row],[Orçamento em detalhes]],\"\")","v":0}]
[null,"Souvenirs",50,{"$f":"SUMIF(Tabela2[Categoria],Tabela1[[#This Row],[Categorias]],Tabela2[Valor])","v":0},{"$f":"IFERROR(Tabela1[[#This Row],[Orçamento planejado]]-Tabela1[[#This Row],[Orçamento em detalhes]],\"\")","v":50}]
[null,"Outras Pessoas",50,{"$f":"SUMIF(Tabela2[Categoria],Tabela1[[#This Row],[Categorias]],Tabela2[Valor])","v":0},{"$f":"IFERROR(Tabela1[[#This Row],[Orçamento planejado]]-Tabela1[[#This Row],[Orçamento em detalhes]],\"\")","v":50}]
[null,"Fundo de contingência",200,{"$f":"SUMIF(Tabela2[Categoria],Tabela1[[#This Row],[Categorias]],Tabela2[Valor])","v":0},{"$f":"IFERROR(Tabela1[[#This Row],[Orçamento planejado]]-Tabela1[[#This Row],[Orçamento em detalhes]],\"\")","v":200}]
[null,"Orçamento total",{"$f":"SUBTOTAL(109,Tabela1[Orçamento planejado])","v":1900},{"$f":"SUBTOTAL(109,Tabela1[Orçamento em detalhes])","v":1600},{"$f":"SUBTOTAL(109,Tabela1[Disponível / (acima)])","v":300}]
[]
[null,"Detalhes de despesas"]
[null,"Descrição","Categoria","Quantidade","Custo unitário","Valor"]
[null,"Passagem aérea","Transporte",2,300,{"$f":"IFERROR(Tabela2[[#This Row],[Quantidade]]*Tabela2[[#This Row],[Custo unitário]],\"\")","v":600}]
[null,"Ônibus e táxi, dois dias","Transporte",4,30,{"$f":"IFERROR(Tabela2[[#This Row],[Quantidade]]*Tabela2[[#This Row],[Custo unitário]],\"\")","v":120}]
[null,"Hotel (2 noites)","Hospedagem",2,150,{"$f":"IFERROR(Tabela2[[#This Row],[Quantidade]]*Tabela2[[#This Row],[Custo unitário]],\"\")","v":300}]
[null,"Comida, dois dias","Alimentação",2,40,{"$f":"IFERROR(Tabela2[[#This Row],[Quantidade]]*Tabela2[[#This Row],[Custo unitário]],\"\")","v":80}]
[null,"Dia 1, ingressos de show","Atividades",2,250,{"$f":"IFERROR(Tabela2[[#This Row],[Quantidade]]*Tabela2[[#This Row],[Custo unitário]],\"\")","v":500}]
[null,"Digite em itens de outras despesas",null,null,null,{"$f":"IFERROR(Tabela2[[#This Row],[Quantidade]]*Tabela2[[#This Row],[Custo unitário]],\"\")","v":0}]